fUSD/lending_fUSD_20250226
["ID","MTS","AMOUNT","RATE_DAILY","PERIOD"]
[354563229,1740575456886,-500.0,0.00041369,14]
[354563230,1740575456896,-969.67,0.00041369,14]
[354563231,1740575456904,-2397.18,0.00041369,14]
[354563232,1740575456913,-2062.6,0.00041369,14]
[354563233,1740575456923,-676.07,0.00041369,14]
[354563234,1740575456932,-500.0,0.00041369,14]
[354563235,1740575456941,-526.2753987,0.00041369,14]
[354563236,1740575456952,-500.0,0.00041369,14]
[354563237,1740575456961,-955.61,0.00041369,14]
[354563238,1740575456970,-500.0,0.00041369,14]
[354563239,1740575456980,-500.0,0.00041369,14]
[354563240,1740575456990,-695.84,0.00041369,14]
[354563241,1740575457000,-500.0,0.00041369,14]
[354563242,1740575457009,-976.27,0.00041369,14]
[354563243,1740575457018,-1478.64,0.00041369,14]
[354563244,1740575457027,-500.0,0.00041369,14]
[354563245,1740575457037,-1178.11,0.00041369,14]
[354563246,1740575457046,-1303.01,0.00041369,14]
[354563247,1740575457055,-1183.4,0.00041369,14]
[354563248,1740575457064,-586.58,0.00041369,14]
[354563249,1740575457073,-500.0,0.00041369,14]
[354563250,1740575457083,-1251.16,0.00041369,14]
[354563251,1740575457092,-2078.83,0.00041369,14]
[354563252,1740575457101,-762.04,0.00041369,14]
[354563253,1740575457111,-671.1,0.00041369,14]
[354563254,1740575457120,-500.0,0.00041369,14]
[354563255,1740575457130,-500.0,0.00041369,14]
[354563256,1740575457139,-431.55360198,0.00041369,14]
[354563257,1740575457148,-500.0,0.00041369,14]
[354563258,1740575457157,-793.86,0.00041369,14]
[354563259,1740575457166,-500.0,0.00041369,14]
[354563260,1740575457175,-1270.53,0.00041369,14]
[354563261,1740575457184,-3825.9,0.00041369,14]
[354563262,1740575457194,-1197.58,0.00041369,14]
[354563263,1740575457203,-500.0,0.00041369,14]
[354563264,1740575457212,-931.49,0.00041369,14]
[354563265,1740575457221,-1487.83,0.00041369,14]
[354563266,1740575457231,-423.08,0.00041369,14]
[354563267,1740575457240,-2229.8,0.00041369,14]
[354563268,1740575457249,-1619.1,0.00041369,14]
[354563269,1740575457259,-1479.23,0.00041369,14]
[354563270,1740575457268,-2097.27,0.00041369,14]
[354563271,1740575457277,-900.12,0.00041369,14]
[354563272,1740575457286,-1076.44,0.00041369,14]
[354563273,1740575457296,-551.17,0.00041369,14]
[354563274,1740575457305,-2896.43,0.00041369,14]
[354563275,1740575457314,-888.15,0.00041369,14]
[354563276,1740575457323,-500.0,0.00041369,14]
[354563277,1740575457333,-1019.59,0.00041369,14]
[354563278,1740575457342,-851.36,0.00041369,14]
[354563279,1740575457352,-1272.09,0.00041369,14]
[354563280,1740575457361,-990.23,0.00041369,14]
[354563281,1740575457370,-922.72,0.00041369,14]
[354563282,1740575457380,-1390.38,0.00041369,14]
[354563283,1740575457389,-906.93,0.00041369,14]
[354563284,1740575457398,-813.8,0.00041369,14]
[354563285,1740575457407,-848.06,0.00041369,14]
[354563286,1740575457416,-979.23,0.00041369,14]
[354563287,1740575457426,-1166.79,0.00041369,14]
[354563288,1740575457436,-935.21,0.00041369,14]
[354563289,1740575457445,-2574.68,0.00041369,14]
[354563290,1740575457454,-1947.41,0.00041369,14]
[354563291,1740575457466,-892.23,0.00041369,14]
[354563292,1740575457475,-1187.85,0.00041369,14]
[354563293,1740575457485,-2471.55,0.00041369,14]
[354563294,1740575457495,-631.4,0.00041369,14]
[354563295,1740575457504,-1163.86,0.00041369,14]
[354563296,1740575457514,-658.09,0.00041369,14]
[354563297,1740575457523,-829.5,0.00041369,14]
[354563298,1740575457532,-500.0,0.00041369,14]
[354563299,1740575457541,-2087.01,0.00041369,14]
[354563300,1740575457551,-1242.91,0.00041369,14]
[354563301,1740575457561,-2448.7,0.00041369,14]
[354563302,1740575457570,-751.34,0.00041369,14]
[354563303,1740575457580,-500.0,0.00041369,14]
[354563304,1740575457590,-2720.53,0.00041369,14]
[354563305,1740575457599,-716.95,0.00041369,14]
[354563306,1740575457608,-897.6,0.00041369,14]
[354563307,1740575457617,-865.83,0.00041369,14]
[354563308,1740575457627,-555.27,0.00041369,14]
[354563309,1740575457638,-1380.31,0.00041369,14]
[354563310,1740575457647,-769.26,0.00041369,14]
[354563311,1740575457657,-5632.78,0.00041369,14]
[354563312,1740575457666,-500.0,0.00041369,14]
[354563313,1740575457676,-1003.99,0.00041369,14]
[354563314,1740575457685,-2223.55,0.00041369,14]
[354563315,1740575457694,-500.0,0.00041369,14]
[354563316,1740575457704,-500.0,0.00041369,14]
[354563317,1740575457714,-1633.45,0.00041369,14]
[354563318,1740575457723,-5865.29,0.00041369,14]
[354563319,1740575457733,-506.08,0.00041369,14]
[354563320,1740575457743,-500.0,0.00041369,14]
[354563321,1740575457754,-1724.37,0.00041369,14]
[354563322,1740575457763,-754.51,0.00041369,14]
[354563323,1740575457772,-1480.7,0.00041369,14]
[354563324,1740575457781,-818.41,0.00041369,14]
[354563325,1740575457791,-2469.31,0.00041369,14]
[354563326,1740575457801,-793.87,0.00041369,14]
[354563327,1740575457810,-2851.43,0.00041369,14]
[354563328,1740575457820,-666.5,0.00041369,14]
[354563329,1740575457829,-661.76,0.00041369,14]
[354563330,1740575457839,-500.0,0.00041369,14]
[354563331,1740575457848,-674.56,0.00041369,14]
[354563332,1740575457858,-500.0,0.00041369,14]
[354563333,1740575457868,-819.63,0.00041369,14]
[354563334,1740575457877,-954.92,0.00041369,14]
[354563335,1740575457888,-2642.62,0.00041369,14]
[354563336,1740575457897,-500.0,0.00041369,14]
[354563337,1740575457907,-1530.02,0.00041369,14]
[354563338,1740575457915,-3744.89,0.00041369,14]
[354563339,1740575457925,-1429.61,0.00041369,14]
[354563340,1740575457934,-500.0,0.00041369,14]
[354563341,1740575457947,-825.28,0.00041369,14]
[354563342,1740575457957,-352.81812656,0.00041369,14]
[354563343,1740575457967,-500.0,0.00041369,14]
[354563344,1740575457977,-863.05,0.00041369,14]
[354563345,1740575457987,-686.95,0.00041369,14]
[354563346,1740575457999,-1159.4,0.00041369,14]
[354563347,1740575458008,-500.0,0.00041369,14]
[354563348,1740575458018,-1570.55,0.00041369,14]
[354563349,1740575458027,-551.74,0.00041369,14]
[354563350,1740575458036,-500.0,0.00041369,14]
[354563351,1740575458045,-1570.24,0.00041369,14]
[354563352,1740575458054,-500.0,0.00041369,14]
[354563353,1740575458063,-500.0,0.00041369,14]
[354563354,1740575458072,-989.55,0.00041369,14]
[354563355,1740575458081,-1767.47,0.00041369,14]
[354563356,1740575458091,-523.47,0.00041369,14]
[354563357,1740575458101,-719.22,0.00041369,14]
[354563358,1740575458109,-686.69,0.00041369,14]
[354563359,1740575458119,-1537.63,0.00041369,14]
[354563360,1740575458129,-968.6,0.00041369,14]
[354563361,1740575458138,-1575.95,0.00041369,14]
[354563362,1740575458147,-543.4,0.00041369,14]
[354563363,1740575458157,-528.58,0.00041369,14]
[354563364,1740575458166,-2432.41,0.00041369,14]
[354563365,1740575458176,-541.83,0.00041369,14]
[354563366,1740575458185,-1795.79,0.00041369,14]
[354563367,1740575458194,-150.0,0.00041373,2]
[354563368,1740575458203,-153.0,0.00041382,2]
[354563369,1740575458212,-153.0,0.00041382,2]
[354563370,1740575458222,-153.0,0.00041384,2]
[354563371,1740575458231,-153.0,0.00041384,2]
[354563372,1740575458244,-750.0,0.000414,30]
[354563373,1740575458253,-638.0,0.000414,30]
[354563374,1740575458262,-392.62,0.00041417,120]
[354563375,1740575458271,-150.0,0.00041434,2]
[354563376,1740575458280,-150.0,0.00041449,14]
[354563377,1740575458289,-150.0,0.00041457,2]
[354563378,1740575458298,-2371.01,0.00041464,14]
[354563379,1740575458307,-2500.96,0.00041464,14]
[354563380,1740575458316,-1814.89,0.00041464,14]
[354563381,1740575458325,-3797.99,0.00041464,14]
[354563382,1740575458334,-500.0,0.00041464,14]
[354563383,1740575458343,-3465.47,0.00041464,14]
[354563384,1740575458352,-1761.62,0.00041464,14]
[354563385,1740575458361,-3245.94,0.00041464,14]
[354563386,1740575458370,-4094.25,0.00041464,14]
[354563387,1740575458381,-1938.93,0.00041464,14]
[354563388,1740575458391,-2147.12,0.00041464,14]
[354563389,1740575458400,-4231.49,0.00041464,14]
[354563390,1740575458409,-2356.62,0.00041464,14]
[354563391,1740575458418,-1296.58,0.00041464,14]
[354563392,1740575458427,-150.0,0.00041472,2]
[354563393,1740575458437,-190.86672146,0.00041482,15]
[354563394,1740575458446,-508.01344156,0.00041487,14]
[354563395,1740575458456,-3922.0,0.00041487,2]
[354563396,1740575458466,-1010.0,0.00041487,2]
[354563397,1740575458475,-150.0,0.00041487,2]
[354563398,1740575458485,-1387.00948,0.000415,41]
[354563399,1740575458494,-8597.44844447,0.000415,2]
[354563400,1740575458504,-150.0,0.00041504,2]
[354563401,1740575458513,-150.0,0.00041517,14]
[354563402,1740575458523,-638.00170551,0.00041537,120]
[354563403,1740575458532,-3419.79,0.00041542,14]
[354563404,1740575458541,-1348.62,0.00041542,7]
[354563405,1740575458551,-1206.43,0.00041542,14]
[354563406,1740575458560,-2428.06,0.00041542,14]
[354563407,1740575458570,-775.488991,0.00041542,14]
[354563408,1740575458580,-5447.0,0.00041542,14]
[354563409,1740575458589,-1315.78,0.00041542,14]
[354563410,1740575458598,-2495.53,0.00041542,14]
[354563411,1740575458608,-1788.132357,0.00041542,14]
[354563412,1740575458618,-2727.83,0.00041542,14]
[354563413,1740575458627,-2967.69,0.00041542,2]
[354563414,1740575458638,-2286.13,0.00041542,14]
[354563415,1740575458647,-1932.4,0.00041542,14]
[354563416,1740575458657,-2018.58,0.00041542,14]
[354563417,1740575458667,-3455.44,0.00041542,14]
[354563418,1740575458677,-14968.36,0.00041542,14]
[354563419,1740575458687,-3120.78,0.00041542,14]
[354563420,1740575458696,-7765.54,0.00041542,14]
[354563421,1740575458706,-3346.45,0.00041542,14]
[354563422,1740575458715,-2226.1,0.00041542,14]
[354563423,1740575458725,-3519.2,0.00041542,14]
[354563424,1740575458735,-3362.4,0.00041542,14]
[354563425,1740575458745,-2570.19,0.00041542,14]
[354563426,1740575458755,-6700.96,0.00041542,14]
[354563427,1740575458764,-3681.89,0.00041542,14]
[354563428,1740575458774,-3892.22,0.00041542,14]
[354563429,1740575458783,-5531.83,0.00041542,14]
[354563430,1740575458792,-926.59310377,0.00041542,2]
[354563431,1740575458801,-5788.43,0.00041542,14]
[354563432,1740575458811,-11405.96730294,0.00041542,2]
[354563433,1740575458821,-742.61,0.00041542,14]
[354563434,1740575458831,-2007.52,0.00041542,14]
[354563435,1740575458840,-5220.13,0.00041542,14]
[354563436,1740575458848,-4862.89,0.00041542,14]
[354563437,1740575458858,-502.07,0.00041542,14]
[354563438,1740575458867,-181.29664066,0.00041542,2]
[354563439,1740575458876,-2945.18,0.00041542,14]
[354563440,1740575458886,-164.90635037,0.00041543,4]
[354563441,1740575458895,-2359.98385828,0.00041543,15]
[354563442,1740575458904,-500.0,0.00041543,2]
[354563443,1740575458913,-150.0,0.00041557,2]
[354563444,1740575458922,-150.0,0.00041558,2]
[354563445,1740575458931,-1000.0,0.00041559,14]
[354563446,1740575458942,-538.56537485,0.00041565,14]
[354563447,1740575458953,-150.0,0.00041578,14]
[354563448,1740575458963,-1000.0,0.00041597,14]
[354563449,1740575458972,-250.0,0.000416,2]
[354563450,1740575458982,-391.5445483,0.00041613,2]
[354563451,1740575458994,-1000.0,0.00041615,14]
[354563452,1740575459004,-155.52,0.00041617,10]
[354563453,1740575459013,-1000.0,0.00041628,14]
[354563454,1740575459024,-150.0,0.00041633,2]
[354563455,1740575459034,-190.86672146,0.00041634,15]
[354563456,1740575459043,-150.0,0.00041637,2]
[354563457,1740575459053,-150.0,0.0004164,2]
[354563458,1740575459063,-150.0,0.00041641,2]
[354563459,1740575459072,-210.83001902,0.00041642,7]
[354563460,1740575459082,-500.0,0.00041642,14]
[354563461,1740575459091,-500.0,0.00041642,14]
[354563462,1740575459102,-500.0,0.00041642,14]
[354563463,1740575459111,-509.17,0.00041642,14]
[354563464,1740575459120,-848.49,0.00041642,14]
[354563465,1740575459130,-500.0,0.00041642,14]
[354563466,1740575459142,-1025.0,0.00041642,14]
[354563467,1740575459154,-1058.32,0.00041642,14]
[354563468,1740575459164,-839.71,0.00041642,14]
[354563469,1740575459174,-830.07,0.00041642,14]
[354563470,1740575459184,-500.0,0.00041642,14]
[354563471,1740575459193,-799.42,0.00041642,14]
[354563472,1740575459203,-522.18598305,0.00041642,14]
[354563473,1740575459213,-2060.38,0.00041642,14]
[354563474,1740575459223,-500.0,0.00041642,14]
[354563475,1740575459232,-500.0,0.00041642,14]
[354563476,1740575459242,-1007.91,0.00041642,14]
[354563477,1740575459251,-876.82,0.00041642,14]
[354563478,1740575459261,-912.41,0.00041642,14]
[354563479,1740575459271,-548.15,0.00041642,14]
[354563480,1740575459280,-868.59,0.00041642,14]
[354563481,1740575459291,-500.0,0.00041642,14]
[354563482,1740575459301,-684.23,0.00041642,14]
[354563483,1740575459310,-785.3,0.00041642,14]
[354563484,1740575459326,-1791.66,0.00041642,14]
[354563485,1740575459344,-500.0,0.00041642,14]
[354563486,1740575459358,-500.0,0.00041642,14]
[354563487,1740575459368,-551.18,0.00041642,14]
[354563488,1740575459377,-1462.81,0.00041642,14]
[354563489,1740575459388,-691.92,0.00041642,14]
[354563490,1740575459398,-1473.66,0.00041642,14]
[354563491,1740575459407,-805.09,0.00041642,14]
[354563492,1740575459417,-500.0,0.00041642,14]
[354563493,1740575459426,-564.41,0.00041642,14]
[354563494,1740575459435,-500.0,0.00041642,14]
[354563495,1740575459445,-945.45,0.00041642,14]
[354563496,1740575459455,-775.18,0.00041642,14]
[354563497,1740575459464,-658.16,0.00041642,14]
[354563498,1740575459474,-500.0,0.00041642,14]
[354563499,1740575459484,-1588.91,0.00041642,14]
[354563500,1740575459494,-1264.29,0.00041642,14]
[354563501,1740575459504,-711.01,0.00041642,14]
[354563502,1740575459513,-694.67,0.00041642,14]
[354563503,1740575459523,-500.0,0.00041642,14]
[354563504,1740575459533,-1049.98,0.00041642,60]
[354563505,1740575459543,-500.0,0.00041642,14]
[354563506,1740575459552,-799.9,0.00041642,14]
[354563507,1740575459562,-500.0,0.00041642,14]
[354563508,1740575459571,-556.35,0.00041642,14]
[354563509,1740575459581,-500.0,0.00041642,14]
[354563510,1740575459590,-1794.91,0.00041642,14]
[354563511,1740575459600,-1169.9,0.00041642,14]
[354563512,1740575459611,-1360.03,0.00041642,14]
[354563513,1740575459622,-1362.42,0.00041642,14]
[354563514,1740575459633,-500.0,0.00041642,14]
[354563515,1740575459643,-500.0,0.00041642,14]
[354563516,1740575459652,-500.0,0.00041642,14]
[354563517,1740575459662,-949.52,0.00041642,14]
[354563518,1740575459672,-500.0,0.00041642,14]
[354563519,1740575459683,-500.0,0.00041642,14]
[354563520,1740575459692,-1299.68,0.00041642,14]
[354563521,1740575459702,-394.82452189,0.00041642,14]
[354563522,1740575459712,-627.5,0.00041642,14]
[354563523,1740575459721,-500.0,0.00041642,14]
[354563524,1740575459731,-500.0,0.00041642,14]
[354563525,1740575459743,-1287.96,0.00041642,14]
[354563526,1740575459753,-798.2,0.00041642,14]
[354563527,1740575459762,-500.0,0.00041642,14]
[354563528,1740575459771,-552.13,0.00041642,14]
[354563529,1740575459781,-3071.6,0.00041642,14]
[354563530,1740575459791,-606.72,0.00041642,14]
[354563531,1740575459801,-2228.21,0.00041642,14]
[354563532,1740575459810,-500.0,0.00041642,14]
[354563533,1740575459820,-500.0,0.00041642,14]
[354563534,1740575459830,-1777.33,0.00041642,14]
[354563535,1740575459840,-793.61,0.00041642,14]
[354563536,1740575459850,-500.0,0.00041642,14]
[354563537,1740575459859,-10296.21,0.00041642,14]
[354563538,1740575459869,-1023.39,0.00041642,14]
[354563539,1740575459879,-500.0,0.00041642,14]
[354563540,1740575459890,-777.73,0.00041642,14]
[354563541,1740575459900,-3524.06,0.00041642,14]
[354563542,1740575459911,-864.44,0.00041642,14]
[354563543,1740575459922,-965.73,0.00041642,7]
[354563544,1740575459932,-711.47,0.00041642,14]
[354563545,1740575459947,-611.75,0.00041642,14]
[354563546,1740575459957,-899.53,0.00041642,14]
[354563547,1740575459966,-500.0,0.00041642,14]
[354563548,1740575459976,-500.0,0.00041642,14]
[354563549,1740575459987,-3939.98,0.00041642,14]
[354563550,1740575459997,-761.03,0.00041642,14]
[354563551,1740575460006,-3008.42,0.00041642,14]
[354563552,1740575460017,-720.79,0.00041642,14]
[354563553,1740575460026,-5721.31,0.00041642,14]
[354563554,1740575460038,-710.64,0.00041642,14]
[354563555,1740575460048,-12055.1,0.00041642,14]
[354563556,1740575460059,-500.0,0.00041642,14]
[354563557,1740575460068,-1540.72,0.00041642,14]
[354563558,1740575460078,-500.0,0.00041642,14]
[354563559,1740575460088,-500.0,0.00041642,14]
[354563560,1740575460098,-1490.27,0.00041642,14]
[354563561,1740575460108,-500.0,0.00041642,14]
[354563562,1740575460118,-3529.52,0.00041642,14]
[354563563,1740575460128,-500.0,0.00041642,14]
[354563564,1740575460140,-515.62,0.00041642,14]
[354563565,1740575460150,-500.0,0.00041642,14]
[354563566,1740575460160,-2221.17,0.00041642,14]
[354563567,1740575460169,-8947.11,0.00041642,14]
[354563568,1740575460179,-2016.18,0.00041642,14]
[354563569,1740575460191,-701.76,0.00041642,14]
[354563570,1740575460202,-900.0,0.00041642,120]
[354563571,1740575460211,-500.0,0.00041642,14]
[354563572,1740575460221,-3669.77,0.00041642,14]
[354563573,1740575460231,-277.1401688,0.00041642,14]
[354563574,1740575460240,-500.0,0.00041642,14]
[354563575,1740575460251,-500.0,0.00041642,14]
[354563576,1740575460260,-1329.17,0.00041642,14]
[354563577,1740575460270,-5453.89,0.00041642,14]
[354563578,1740575460280,-2984.46,0.00041642,14]
[354563579,1740575460290,-709.12,0.00041642,14]
[354563580,1740575460300,-3808.99,0.00041642,14]
[354563581,1740575460309,-1288.01,0.00041642,14]
[354563582,1740575460318,-500.0,0.00041642,14]
[354563583,1740575460328,-500.0,0.00041642,14]
[354563584,1740575460337,-1735.75,0.00041642,14]
[354563585,1740575460347,-500.0,0.00041642,14]
[354563586,1740575460356,-500.0,0.00041642,14]
[354563587,1740575460366,-929.59,0.00041642,14]
[354563588,1740575460377,-1946.43,0.00041642,14]
[354563589,1740575460388,-1866.03,0.00041642,14]
[354563590,1740575460398,-934.7,0.00041642,14]
[354563591,1740575460407,-709.76,0.00041642,14]
[354563592,1740575460418,-3708.47,0.00041642,14]
[354563593,1740575460428,-1312.39,0.00041642,14]
[354563594,1740575460438,-1704.08,0.00041642,14]
[354563595,1740575460447,-713.87,0.00041642,14]
[354563596,1740575460457,-1401.72,0.00041642,14]
[354563597,1740575460466,-4142.94,0.00041642,14]
[354563598,1740575460477,-2401.25,0.00041642,14]
[354563599,1740575460486,-778.73,0.00041642,14]
[354563600,1740575460496,-1801.16,0.00041642,14]
[354563601,1740575460506,-904.0,0.00041642,14]
[354563602,1740575460516,-500.0,0.00041642,14]
[354563603,1740575460528,-889.7,0.00041642,14]
[354563604,1740575460538,-500.0,0.00041642,14]
[354563605,1740575460548,-2611.23,0.00041642,14]
[354563606,1740575460557,-500.0,0.00041642,14]
[354563607,1740575460568,-621.4,0.00041642,14]
[354563608,1740575460577,-4835.15,0.00041642,14]
[354563609,1740575460587,-500.0,0.00041642,14]
[354563610,1740575460597,-500.0,0.00041642,14]
[354563611,1740575460606,-3095.21,0.00041642,14]
[354563612,1740575460616,-563.4,0.00041642,14]
[354563613,1740575460625,-2201.26,0.00041642,14]
[354563614,1740575460637,-500.0,0.00041642,14]
[354563615,1740575460647,-500.0,0.00041642,14]
[354563616,1740575460657,-500.0,0.00041642,14]
[354563617,1740575460666,-3437.26,0.00041642,14]
[354563618,1740575460676,-500.0,0.00041642,14]
[354563619,1740575460686,-500.0,0.00041642,14]
[354563620,1740575460697,-2638.84,0.00041642,14]
[354563621,1740575460707,-500.0,0.00041642,14]
[354563622,1740575460717,-500.0,0.00041642,14]
[354563623,1740575460727,-2540.82,0.00041642,14]
[354563624,1740575460737,-2112.29,0.00041642,14]
[354563625,1740575460747,-601.4,0.00041642,14]
[354563626,1740575460757,-1138.75,0.00041642,14]
[354563627,1740575460767,-1199.69,0.00041642,14]
[354563628,1740575460776,-1101.82,0.00041642,14]
[354563629,1740575460787,-586.68,0.00041642,14]
[354563630,1740575460797,-1658.49,0.00041642,14]
[354563631,1740575460808,-1547.98,0.00041642,14]
[354563632,1740575460817,-2977.93,0.00041642,14]
[354563633,1740575460828,-500.0,0.00041642,14]
[354563634,1740575460838,-500.0,0.00041642,14]
[354563635,1740575460848,-500.0,0.00041642,14]
[354563636,1740575460859,-500.0,0.00041642,14]
[354563637,1740575460869,-500.0,0.00041642,14]
[354563638,1740575460879,-500.0,0.00041642,14]
[354563639,1740575460896,-1676.92,0.00041642,14]
[354563640,1740575460906,-500.0,0.00041642,14]
[354563641,1740575460916,-2217.0,0.00041642,14]
[354563642,1740575460926,-3347.21,0.00041642,14]
[354563643,1740575460936,-660.56,0.00041642,14]
[354563644,1740575460951,-2928.67,0.00041642,14]
[354563645,1740575460961,-951.82,0.00041642,14]
[354563646,1740575460971,-500.0,0.00041642,14]
[354563647,1740575460980,-283.3064111,0.00041642,14]
[354563648,1740575460991,-3518.54,0.00041642,14]
[354563649,1740575461001,-737.89,0.00041642,14]
[354563650,1740575461012,-1429.29,0.00041642,14]
[354563651,1740575461023,-1666.86,0.00041642,14]
[354563652,1740575461033,-1703.49,0.00041642,14]
[354563653,1740575461043,-2111.44,0.00041642,14]
[354563654,1740575461053,-5163.43,0.00041642,14]
[354563655,1740575461063,-893.7,0.00041642,14]
[354563656,1740575461073,-960.89,0.00041642,14]
[354563657,1740575461084,-1131.82,0.00041642,14]
[354563658,1740575461094,-500.0,0.00041642,14]
[354563659,1740575461104,-3523.41,0.00041642,14]
[354563660,1740575461113,-2093.77,0.00041642,14]
[354563661,1740575461123,-1951.44,0.00041642,14]
[354563662,1740575461137,-3458.43,0.00041642,14]
[354563663,1740575461149,-280.41344119,0.00041642,14]
[354563664,1740575461160,-1431.67,0.00041642,14]
[354563665,1740575461171,-2666.33,0.00041642,14]
[354563666,1740575461181,-500.0,0.00041642,14]
[354563667,1740575461192,-500.0,0.00041643,14]
[354563668,1740575461202,-785.71,0.00041643,14]
[354563669,1740575461212,-500.0,0.00041643,14]
[354563670,1740575461499,-1036.76,0.00041643,14]
[354563671,1740575461514,-702.9,0.00041643,14]
[354563672,1740575461524,-1248.91,0.00041643,14]
[354563673,1740575461533,-500.0,0.00041643,14]
[354563674,1740575461543,-1531.15,0.00041643,14]
[354563675,1740575461552,-913.79,0.00041643,14]
[354563676,1740575461562,-1347.25,0.00041643,14]
[354563677,1740575461571,-729.69,0.00041643,14]
[354563678,1740575461581,-602.42,0.00041643,14]
[354563679,1740575461590,-500.0,0.00041643,14]
[354563680,1740575461600,-500.0,0.00041643,14]
[354563681,1740575461609,-594.32109018,0.00041643,14]
[354563682,1740575461618,-1314.54,0.00041643,14]
[354563683,1740575461628,-627.26,0.00041643,14]
[354563684,1740575461641,-1381.62,0.00041643,14]
[354563685,1740575461651,-500.0,0.00041643,14]
[354563686,1740575461660,-1261.1,0.00041643,14]
[354563687,1740575461669,-500.0,0.00041643,14]
[354563688,1740575461678,-500.0,0.00041643,14]
[354563689,1740575461688,-531.86,0.00041643,14]
[354563690,1740575461697,-809.32,0.00041643,14]
[354563691,1740575461707,-500.0,0.00041643,14]
[354563692,1740575461716,-734.42,0.00041643,14]
[354563693,1740575461726,-500.0,0.00041643,14]
[354563694,1740575461735,-553.81,0.00041643,14]
[354563695,1740575461745,-500.0,0.00041643,14]
[354563696,1740575461755,-500.0,0.00041643,14]
[354563697,1740575461764,-527.12458805,0.00041643,14]
[354563698,1740575461774,-500.0,0.00041643,14]
[354563699,1740575461783,-500.0,0.00041643,14]
[354563700,1740575461792,-1357.63,0.00041643,14]
[354563701,1740575461802,-500.0,0.00041643,14]
[354563702,1740575461811,-1320.3,0.00041643,14]
[354563703,1740575461821,-550.13,0.00041643,14]
[354563704,1740575461830,-764.26,0.00041643,14]
[354563705,1740575461839,-500.0,0.00041643,14]
[354563706,1740575461848,-903.73,0.00041643,14]
[354563707,1740575461858,-707.07,0.00041643,14]
[354563708,1740575461867,-500.0,0.00041643,14]
[354563709,1740575461877,-863.36,0.00041643,14]
[354563710,1740575461887,-1146.24,0.00041643,14]
[354563711,1740575461896,-1287.9,0.00041643,14]
[354563712,1740575461906,-992.98,0.00041643,14]
[354563713,1740575461915,-500.0,0.00041643,14]
[354563714,1740575461924,-773.71,0.00041643,14]
[354563715,1740575461937,-895.24,0.00041643,14]
[354563716,1740575461950,-500.0,0.00041643,14]
[354563717,1740575461962,-1972.49,0.00041643,14]
[354563718,1740575461971,-605.29,0.00041643,14]
[354563719,1740575461981,-580.7,0.00041643,14]
[354563720,1740575461991,-1308.68,0.00041643,14]
[354563721,1740575462000,-500.0,0.00041643,14]
[354563722,1740575462010,-500.0,0.00041643,14]
[354563723,1740575462020,-500.0,0.00041643,14]
[354563724,1740575462030,-500.0,0.00041643,14]
[354563725,1740575462039,-500.0,0.00041643,14]
[354563726,1740575462048,-920.33,0.00041643,14]
[354563727,1740575462058,-500.0,0.00041643,14]
[354563728,1740575462067,-500.0,0.00041643,14]